[Event "Titled Tuesday Blitz March 28 Early 2023"]
[White "Melaugh, Shane"]
[Black "Rastbod, Ali"]
[WhiteFideId "2509580"]
[BlackFideId "12567477"]
[WhiteElo "2034"]
[BlackElo "2211"]
[Result "1-0"]
[Round "03"]
[TimeControl "180+2"]
[Date "2023.03.28"]
[WhiteClock "0:00:27"]
[BlackClock "0:00:05"]

1. c4 {[%clk 0:03:00]}  e5 {[%clk 0:02:53]} 2. Nc3 {[%clk 0:02:57]}  Bb4 {[%clk 0:02:43]} 3. g3 {[%clk 0:02:55]}  Bxc3 {[%clk 0:02:42]} 4. bxc3 {[%clk 0:02:56]}  d6 {[%clk 0:02:41]} 5. Bg2 {[%clk 0:02:55]}  f5 {[%clk 0:02:41]} 6. d3 {[%clk 0:02:55]}  Nf6 {[%clk 0:02:41]} 7. f4 {[%clk 0:02:54]}  e4 {[%clk 0:02:36]} 8. Nh3 {[%clk 0:02:52]}  exd3 {[%clk 0:01:46]} 9. exd3 {[%clk 0:02:51]}  Qe7+ {[%clk 0:01:42]} 10. Qe2 {[%clk 0:02:50]}  Qxe2+ {[%clk 0:01:42]} 11. Kxe2 {[%clk 0:02:51]}  O-O {[%clk 0:01:42]} 12. Nf2 {[%clk 0:02:42]}  Re8+ {[%clk 0:01:38]} 13. Be3 {[%clk 0:02:42]}  Nc6 {[%clk 0:01:33]} 14. Kd2 {[%clk 0:02:41]}  Bd7 {[%clk 0:01:30]} 15. Rab1 {[%clk 0:02:40]}  b6 {[%clk 0:01:29]} 16. Rhe1 {[%clk 0:02:37]}  Rad8 {[%clk 0:01:28]} 17. Bd4 {[%clk 0:02:23]}  Nxd4 {[%clk 0:01:22]} 18. cxd4 {[%clk 0:02:24]}  c5 {[%clk 0:01:10]} 19. d5 {[%clk 0:02:17]}  h6 {[%clk 0:01:06]} 20. Bf3 {[%clk 0:01:59]}  Kf7 {[%clk 0:01:05]} 21. h4 {[%clk 0:01:55]}  Rg8 {[%clk 0:01:04]} 22. Nh3 {[%clk 0:01:52]}  Rde8 {[%clk 0:00:53]} 23. Rbc1 {[%clk 0:01:33]}  Kf8 {[%clk 0:00:48]} 24. Rxe8+ {[%clk 0:01:32]}  Bxe8 {[%clk 0:00:48]} 25. Re1 {[%clk 0:01:33]}  Bd7 {[%clk 0:00:42]} 26. Kc3 {[%clk 0:01:32]}  Kf7 {[%clk 0:00:38]} 27. Kd2 {[%clk 0:01:30]}  Rb8 {[%clk 0:00:35]} 28. Rb1 {[%clk 0:01:27]}  b5 {[%clk 0:00:35]} 29. Nf2 {[%clk 0:01:25]}  b4 {[%clk 0:00:34]} 30. a3 {[%clk 0:01:20]}  a5 {[%clk 0:00:32]} 31. axb4 {[%clk 0:01:19]}  cxb4 {[%clk 0:00:33]} 32. d4 {[%clk 0:01:15]}  a4 {[%clk 0:00:29]} 33. c5 {[%clk 0:01:15]}  a3 {[%clk 0:00:18]} 34. c6 {[%clk 0:01:14]}  b3 {[%clk 0:00:15]} 35. Nd3 {[%clk 0:01:04]}  a2 {[%clk 0:00:14]} 36. Ra1 {[%clk 0:01:03]}  b2 {[%clk 0:00:14]} 37. Nxb2 {[%clk 0:01:03]}  Rxb2+ {[%clk 0:00:15]} 38. Kc3 {[%clk 0:01:04]}  Rf2 {[%clk 0:00:15]} 39. Bd1 {[%clk 0:00:48]}  Rg2 {[%clk 0:00:13]} 40. cxd7 {[%clk 0:00:45]}  Nxd7 {[%clk 0:00:12]} 41. Bb3 {[%clk 0:00:40]}  Rxg3+ {[%clk 0:00:11]} 42. Kb4 {[%clk 0:00:40]}  Rg4 {[%clk 0:00:08]} 43. Rxa2 {[%clk 0:00:39]}  Nf6 {[%clk 0:00:07]} 44. Kb5 {[%clk 0:00:39]}  Rxf4 {[%clk 0:00:07]} 45. Kc6 {[%clk 0:00:38]}  Ne4 {[%clk 0:00:07]} 46. h5 {[%clk 0:00:35]}  Rh4 {[%clk 0:00:06]} 47. Ra7+ {[%clk 0:00:35]}  Kf6 {[%clk 0:00:06]} 48. Bc2 {[%clk 0:00:33]}  Rxh5 {[%clk 0:00:04]} 49. Bxe4 {[%clk 0:00:33]}  fxe4 {[%clk 0:00:03]} 50. Kxd6 {[%clk 0:00:34]}  Rh3 {[%clk 0:00:03]} 51. Re7 {[%clk 0:00:32]}  e3 {[%clk 0:00:03]} 52. Re6+ {[%clk 0:00:33]}  Kf7 {[%clk 0:00:02]} 53. Re7+ {[%clk 0:00:31]}  Kg8 {[%clk 0:00:02]} 54. Re4 {[%clk 0:00:32]}  g5 {[%clk 0:00:02]} 55. Kc7 {[%clk 0:00:32]}  e2 {[%clk 0:00:03]} 56. Rxe2 {[%clk 0:00:31]}  Rc3+ {[%clk 0:00:03]} 57. Kd7 {[%clk 0:00:30]}  Ra3 {[%clk 0:00:03]} 58. d6 {[%clk 0:00:31]}  Kg7 {[%clk 0:00:03]} 59. Ke8 {[%clk 0:00:27]}  Ra8+ {[%clk 0:00:02]} 60. Ke7 {[%clk 0:00:28]}  Ra7+ {[%clk 0:00:03]} 61. d7 {[%clk 0:00:28]}  g4 {[%clk 0:00:03]} 62. Ke8 {[%clk 0:00:27]}  Rxd7 {[%clk 0:00:04]} 63. Kxd7 {[%clk 0:00:27]}  h5 {[%clk 0:00:05]} 64. Ke6 {[%clk 0:00:27]}  g3 {[%clk 0:00:05]} 65. Kf5 {[%clk 0:00:27]} 1-0


[Site "https://www.chess.com"]

[Event "Titled Tuesday Blitz March 28 Early 2023"]
[White "Rosen, Eric"]
[Black "Zheenbekov, Nurgazy"]
[WhiteFideId "2032562"]
[BlackFideId "13800485"]
[WhiteElo "2331"]
[BlackElo "1975"]
[Result "1/2-1/2"]
[Round "03"]
[TimeControl "180+2"]
[Date "2023.03.28"]
[WhiteClock "0:00:03"]
[BlackClock "0:00:16"]

1. d4 {[%clk 0:03:00]}  Nf6 {[%clk 0:02:59]} 2. Bf4 {[%clk 0:03:01]}  e6 {[%clk 0:02:59]} 3. e3 {[%clk 0:03:01]}  c5 {[%clk 0:02:58]} 4. Nf3 {[%clk 0:03:02]}  d5 {[%clk 0:02:58]} 5. Nbd2 {[%clk 0:03:01]}  Bd6 {[%clk 0:02:58]} 6. Bb5+ {[%clk 0:02:55]}  Nc6 {[%clk 0:02:56]} 7. O-O {[%clk 0:02:55]}  O-O {[%clk 0:02:56]} 8. Bxd6 {[%clk 0:02:49]}  Qxd6 {[%clk 0:02:55]} 9. dxc5 {[%clk 0:02:50]}  Qxc5 {[%clk 0:02:55]} 10. c4 {[%clk 0:02:51]}  dxc4 {[%clk 0:02:39]} 11. Bxc4 {[%clk 0:02:50]}  a6 {[%clk 0:02:21]} 12. Rc1 {[%clk 0:02:50]}  Qe7 {[%clk 0:02:21]} 13. Qe2 {[%clk 0:02:50]}  Bd7 {[%clk 0:02:20]} 14. a3 {[%clk 0:02:43]}  Rac8 {[%clk 0:02:19]} 15. Rfd1 {[%clk 0:02:42]}  h6 {[%clk 0:02:19]} 16. Ba2 {[%clk 0:02:42]}  Rfd8 {[%clk 0:02:16]} 17. Nc4 {[%clk 0:02:40]}  Be8 {[%clk 0:02:12]} 18. h3 {[%clk 0:02:16]}  Nd5 {[%clk 0:02:10]} 19. e4 {[%clk 0:02:09]}  Nf4 {[%clk 0:01:59]} 20. Qe3 {[%clk 0:02:09]}  g5 {[%clk 0:01:49]} 21. e5 {[%clk 0:01:57]}  Rxd1+ {[%clk 0:01:45]} 22. Rxd1 {[%clk 0:01:56]}  Rd8 {[%clk 0:01:45]} 23. Nd6 {[%clk 0:01:54]}  Qc7 {[%clk 0:01:31]} 24. h4 {[%clk 0:01:39]}  Qe7 {[%clk 0:01:16]} 25. hxg5 {[%clk 0:01:33]}  hxg5 {[%clk 0:01:16]} 26. g3 {[%clk 0:00:59]}  Ng6 {[%clk 0:01:15]} 27. Nxg5 {[%clk 0:00:41]}  Ncxe5 {[%clk 0:01:14]} 28. Nge4 {[%clk 0:00:40]}  f5 {[%clk 0:01:08]} 29. f4 {[%clk 0:00:22]}  Ng4 {[%clk 0:01:06]} 30. Qb3 {[%clk 0:00:12]}  fxe4 {[%clk 0:00:59]} 31. Qxe6+ {[%clk 0:00:12]}  Kh7 {[%clk 0:00:45]} 32. Qg8+ {[%clk 0:00:08]}  Kh6 {[%clk 0:00:43]} 33. Nf5+ {[%clk 0:00:08]}  Kh5 {[%clk 0:00:43]} 34. Nxe7 {[%clk 0:00:05]}  Rxd1+ {[%clk 0:00:42]} 35. Kg2 {[%clk 0:00:06]}  Rd2+ {[%clk 0:00:32]} 36. Kf1 {[%clk 0:00:06]}  Nh2+ {[%clk 0:00:25]} 37. Ke1 {[%clk 0:00:05]}  Nf3+ {[%clk 0:00:25]} 38. Kf1 {[%clk 0:00:06]}  Bb5+ {[%clk 0:00:18]} 39. Bc4 {[%clk 0:00:06]}  Nh2+ {[%clk 0:00:17]} 40. Kg1 {[%clk 0:00:05]}  Nf3+ {[%clk 0:00:17]} 41. Kf1 {[%clk 0:00:04]}  Nh2+ {[%clk 0:00:16]} 42. Ke1 {[%clk 0:00:03]}  Nf3+ {[%clk 0:00:16]} 43. Kf1 {[%clk 0:00:03]} 1/2-1/2


[Site "https://www.chess.com"]

[Event "Titled Tuesday Blitz March 28 Early 2023"]
[White "Alex_Sahakyan2006"]
[Black "Bochnicka, Vladimir"]
[BlackFideId "14943450"]
[WhiteElo "2589"]
[BlackElo "2094"]
[Result "1-0"]
[Round "03"]
[TimeControl "180+2"]
[Date "2023.03.28"]
[WhiteClock "0:00:38"]
[BlackClock "0:00:01"]

1. Nf3 {[%clk 0:03:00]}  c5 {[%clk 0:02:59]} 2. e4 {[%clk 0:03:00]}  Nc6 {[%clk 0:02:59]} 3. b4 {[%clk 0:02:50]}  cxb4 {[%clk 0:02:48]} 4. d4 {[%clk 0:02:48]}  d5 {[%clk 0:02:37]} 5. exd5 {[%clk 0:02:47]}  Qxd5 {[%clk 0:02:37]} 6. c4 {[%clk 0:02:47]}  Qe4+ {[%clk 0:02:29]} 7. Be2 {[%clk 0:02:47]}  Bf5 {[%clk 0:02:18]} 8. d5 {[%clk 0:02:34]}  Ne5 {[%clk 0:02:10]} 9. O-O {[%clk 0:02:31]}  Nf6 {[%clk 0:01:54]} 10. Nbd2 {[%clk 0:02:22]}  Nxf3+ {[%clk 0:01:54]} 11. Bxf3 {[%clk 0:02:21]}  Qc2 {[%clk 0:01:46]} 12. Qe1 {[%clk 0:02:16]}  Bd3 {[%clk 0:01:34]} 13. Be2 {[%clk 0:02:14]}  g6 {[%clk 0:01:23]} 14. Rb1 {[%clk 0:02:10]}  Bxe2 {[%clk 0:01:11]} 15. Qxe2 {[%clk 0:02:09]}  Bg7 {[%clk 0:01:11]} 16. d6 {[%clk 0:01:48]}  e6 {[%clk 0:00:58]} 17. Rxb4 {[%clk 0:01:45]}  O-O {[%clk 0:00:54]} 18. Rxb7 {[%clk 0:01:43]}  Qxa2 {[%clk 0:00:54]} 19. Qf3 {[%clk 0:01:38]}  a5 {[%clk 0:00:50]} 20. Bb2 {[%clk 0:01:37]}  Rab8 {[%clk 0:00:36]} 21. Ra1 {[%clk 0:01:31]}  Qxb2 {[%clk 0:00:28]} 22. Rxb2 {[%clk 0:01:30]}  Rxb2 {[%clk 0:00:29]} 23. Nf1 {[%clk 0:01:27]}  e5 {[%clk 0:00:18]} 24. h3 {[%clk 0:01:16]}  e4 {[%clk 0:00:19]} 25. Qa3 {[%clk 0:01:17]}  Rc2 {[%clk 0:00:14]} 26. Qb3 {[%clk 0:01:13]}  Re2 {[%clk 0:00:09]} 27. Rxa5 {[%clk 0:01:09]}  Nd7 {[%clk 0:00:04]} 28. c5 {[%clk 0:01:03]}  Bd4 {[%clk 0:00:04]} 29. Ra2 {[%clk 0:00:40]}  Nxc5 {[%clk 0:00:02]} 30. Qc4 {[%clk 0:00:41]}  Rxa2 {[%clk 0:00:01]} 31. Qxa2 {[%clk 0:00:41]}  Rd8 {[%clk 0:00:01]} 32. Qd5 {[%clk 0:00:41]}  Nb3 {[%clk 0:00:01]} 33. Qxb3 {[%clk 0:00:41]}  Rd7 {[%clk 0:00:01]} 34. Qd5 {[%clk 0:00:40]}  Bg7 {[%clk 0:00:01]} 35. Ng3 {[%clk 0:00:38]} 1-0


[Site "https://www.chess.com"]

[Event "Titled Tuesday Blitz March 28 Early 2023"]
[White "Bodnaruk, Anastasia"]
[Black "Real_taiatai"]
[WhiteFideId "4181751"]
[WhiteElo "2310"]
[BlackElo "2355"]
[Result "1-0"]
[Round "03"]
[TimeControl "180+2"]
[Date "2023.03.28"]
[WhiteClock "0:00:51"]
[BlackClock "0:00:12"]

1. e4 {[%clk 0:03:00]}  c5 {[%clk 0:02:59]} 2. Nc3 {[%clk 0:03:00]}  Nc6 {[%clk 0:02:58]} 3. Bb5 {[%clk 0:03:00]}  g6 {[%clk 0:02:53]} 4. Bxc6 {[%clk 0:02:59]}  dxc6 {[%clk 0:02:53]} 5. f4 {[%clk 0:02:59]}  Bg7 {[%clk 0:02:53]} 6. d3 {[%clk 0:02:57]}  Nf6 {[%clk 0:02:54]} 7. Nf3 {[%clk 0:02:57]}  O-O {[%clk 0:02:54]} 8. O-O {[%clk 0:02:55]}  Bg4 {[%clk 0:02:55]} 9. Kh1 {[%clk 0:02:54]}  Ne8 {[%clk 0:02:55]} 10. Be3 {[%clk 0:02:53]}  b6 {[%clk 0:02:55]} 11. h3 {[%clk 0:02:53]}  Bxf3 {[%clk 0:02:53]} 12. Qxf3 {[%clk 0:02:54]}  Nc7 {[%clk 0:02:53]} 13. f5 {[%clk 0:02:52]}  Nb5 {[%clk 0:02:52]} 14. Nxb5 {[%clk 0:02:27]}  cxb5 {[%clk 0:02:53]} 15. Rad1 {[%clk 0:02:27]}  Bxb2 {[%clk 0:02:47]} 16. d4 {[%clk 0:02:27]}  cxd4 {[%clk 0:02:29]} 17. Bh6 {[%clk 0:02:27]}  Qc7 {[%clk 0:02:26]} 18. Bxf8 {[%clk 0:02:08]}  Rxf8 {[%clk 0:02:27]} 19. f6 {[%clk 0:02:08]}  exf6 {[%clk 0:02:20]} 20. Qxf6 {[%clk 0:02:07]}  Qxc2 {[%clk 0:02:19]} 21. Qf3 {[%clk 0:02:03]}  Qc4 {[%clk 0:02:09]} 22. e5 {[%clk 0:02:02]}  Bc3 {[%clk 0:02:03]} 23. Qe4 {[%clk 0:01:49]}  Qxa2 {[%clk 0:02:00]} 24. Rf6 {[%clk 0:01:48]}  Re8 {[%clk 0:01:31]} 25. Rdf1 {[%clk 0:01:44]}  Qc4 {[%clk 0:01:25]} 26. e6 {[%clk 0:01:33]}  fxe6 {[%clk 0:01:15]} 27. Qb7 {[%clk 0:01:31]}  Qxf1+ {[%clk 0:00:45]} 28. Rxf1 {[%clk 0:01:30]}  Rf8 {[%clk 0:00:46]} 29. Rxf8+ {[%clk 0:01:19]}  Kxf8 {[%clk 0:00:46]} 30. Qxa7 {[%clk 0:01:17]}  b4 {[%clk 0:00:45]} 31. Qxb6 {[%clk 0:01:17]}  Kf7 {[%clk 0:00:30]} 32. Qc7+ {[%clk 0:01:17]}  Kf6 {[%clk 0:00:29]} 33. Qc4 {[%clk 0:01:13]}  e5 {[%clk 0:00:26]} 34. Qc6+ {[%clk 0:01:12]}  Kf5 {[%clk 0:00:25]} 35. Kg1 {[%clk 0:01:09]}  e4 {[%clk 0:00:20]} 36. Kf2 {[%clk 0:01:07]}  e3+ {[%clk 0:00:20]} 37. Kf3 {[%clk 0:01:06]}  h5 {[%clk 0:00:20]} 38. g4+ {[%clk 0:01:04]}  hxg4+ {[%clk 0:00:20]} 39. hxg4+ {[%clk 0:01:05]}  Kg5 {[%clk 0:00:20]} 40. Kg3 {[%clk 0:01:01]}  Be1+ {[%clk 0:00:15]} 41. Kf3 {[%clk 0:01:00]}  Bc3 {[%clk 0:00:16]} 42. Qe6 {[%clk 0:00:56]}  Kh6 {[%clk 0:00:13]} 43. Kf4 {[%clk 0:00:53]}  Bd2 {[%clk 0:00:13]} 44. g5+ {[%clk 0:00:53]}  Kg7 {[%clk 0:00:12]} 45. Qd7+ {[%clk 0:00:52]}  Kf8 {[%clk 0:00:12]} 46. Qxd4 {[%clk 0:00:52]}  e2+ {[%clk 0:00:12]} 47. Qxd2 {[%clk 0:00:51]} 1-0


[Site "https://www.chess.com"]

[Event "Titled Tuesday Blitz March 28 Early 2023"]
[White "Ezat, Mohamed"]
[Black "Xu, Daniel"]
[WhiteFideId "10600906"]
[BlackFideId "2627345"]
[WhiteElo "2386"]
[BlackElo "1980"]
[Result "0-1"]
[Round "03"]
[TimeControl "180+2"]
[Date "2023.03.28"]
[WhiteClock "0:01:00"]
[BlackClock "0:00:09"]

1. d4 {[%clk 0:02:32]}  Nf6 {[%clk 0:02:59]} 2. c4 {[%clk 0:02:32]}  g6 {[%clk 0:02:59]} 3. Nc3 {[%clk 0:02:33]}  Bg7 {[%clk 0:03:00]} 4. e4 {[%clk 0:02:34]}  d6 {[%clk 0:03:00]} 5. Be2 {[%clk 0:02:34]}  O-O {[%clk 0:03:01]} 6. Bg5 {[%clk 0:02:35]}  Na6 {[%clk 0:03:00]} 7. Qd2 {[%clk 0:02:34]}  c6 {[%clk 0:02:59]} 8. h4 {[%clk 0:02:33]}  e5 {[%clk 0:02:42]} 9. d5 {[%clk 0:02:32]}  h5 {[%clk 0:02:23]} 10. f3 {[%clk 0:02:29]}  Qa5 {[%clk 0:02:17]} 11. Nh3 {[%clk 0:02:27]}  Nh7 {[%clk 0:02:10]} 12. Be7 {[%clk 0:02:24]}  Bf6 {[%clk 0:01:58]} 13. Bxf6 {[%clk 0:02:18]}  Nxf6 {[%clk 0:01:57]} 14. Qh6 {[%clk 0:02:18]}  cxd5 {[%clk 0:01:30]} 15. cxd5 {[%clk 0:02:17]}  Nb4 {[%clk 0:01:24]} 16. Ng5 {[%clk 0:01:58]}  Nc2+ {[%clk 0:01:19]} 17. Kd2 {[%clk 0:01:58]}  Nxa1 {[%clk 0:01:18]} 18. Rxa1 {[%clk 0:01:31]}  Qb6 {[%clk 0:01:18]} 19. Kc2 {[%clk 0:01:29]}  Bd7 {[%clk 0:00:58]} 20. g4 {[%clk 0:01:28]}  Rfc8 {[%clk 0:00:47]} 21. gxh5 {[%clk 0:01:27]}  Ba4+ {[%clk 0:00:40]} 22. Kd2 {[%clk 0:01:02]}  Qxb2+ {[%clk 0:00:38]} 23. Ke3 {[%clk 0:01:03]}  Qxc3+ {[%clk 0:00:34]} 24. Kf2 {[%clk 0:01:03]}  Qd4+ {[%clk 0:00:22]} 25. Kg2 {[%clk 0:01:00]}  Rc2 {[%clk 0:00:10]} 26. hxg6 {[%clk 0:00:59]}  Rxe2+ {[%clk 0:00:10]} 27. Kh1 {[%clk 0:01:00]}  Qxa1# {[%clk 0:00:09]} 0-1


[Site "https://www.chess.com"]

[Event "Titled Tuesday Blitz March 28 Early 2023"]
[White "Sliwicki, Damian"]
[Black "Ordekalog"]
[WhiteFideId "1127128"]
[WhiteElo "2030"]
[BlackElo "2574"]
[Result "1-0"]
[Round "03"]
[TimeControl "180+2"]
[Date "2023.03.28"]
[WhiteClock "0:00:04"]
[BlackClock "0:00:02"]

1. e4 {[%clk 0:02:51]}  d5 {[%clk 0:02:58]} 2. exd5 {[%clk 0:02:50]}  Qxd5 {[%clk 0:02:57]} 3. Nf3 {[%clk 0:02:50]}  Nf6 {[%clk 0:02:56]} 4. Be2 {[%clk 0:02:40]}  Nc6 {[%clk 0:02:50]} 5. O-O {[%clk 0:02:36]}  Bg4 {[%clk 0:02:48]} 6. d4 {[%clk 0:02:37]}  O-O-O {[%clk 0:02:46]} 7. Be3 {[%clk 0:02:37]}  e5 {[%clk 0:02:41]} 8. dxe5 {[%clk 0:01:47]}  Bxf3 {[%clk 0:01:57]} 9. Bxf3 {[%clk 0:01:39]}  Qxe5 {[%clk 0:01:56]} 10. Qc1 {[%clk 0:01:20]}  Nd4 {[%clk 0:01:45]} 11. Bxd4 {[%clk 0:01:14]}  Rxd4 {[%clk 0:01:43]} 12. Re1 {[%clk 0:01:07]}  Qa5 {[%clk 0:01:36]} 13. Qe3 {[%clk 0:00:56]}  Bc5 {[%clk 0:01:26]} 14. Nc3 {[%clk 0:00:50]}  Rhd8 {[%clk 0:01:13]} 15. Qe5 {[%clk 0:00:23]}  Rd2 {[%clk 0:01:09]} 16. Kh1 {[%clk 0:00:20]}  Kb8 {[%clk 0:00:29]} 17. a3 {[%clk 0:00:14]}  Bb6 {[%clk 0:00:21]} 18. Qf4 {[%clk 0:00:13]}  Rxf2 {[%clk 0:00:18]} 19. Ne4 {[%clk 0:00:12]}  Nd5 {[%clk 0:00:14]} 20. Qxf7 {[%clk 0:00:11]}  Qa4 {[%clk 0:00:08]} 21. Nxf2 {[%clk 0:00:10]}  Ne3 {[%clk 0:00:05]} 22. Rxe3 {[%clk 0:00:06]}  Bxe3 {[%clk 0:00:04]} 23. Ng4 {[%clk 0:00:06]}  Bb6 {[%clk 0:00:02]} 24. Qb3 {[%clk 0:00:06]}  Qe8 {[%clk 0:00:02]} 25. Rf1 {[%clk 0:00:04]}  Qh5 {[%clk 0:00:01]} 26. Qc4 {[%clk 0:00:04]}  Qg5 {[%clk 0:00:02]} 27. Qe4 {[%clk 0:00:04]}  c6 {[%clk 0:00:02]} 28. h3 {[%clk 0:00:04]}  Bc7 {[%clk 0:00:01]} 29. Be2 {[%clk 0:00:03]}  Qh4 {[%clk 0:00:02]} 30. Qf3 {[%clk 0:00:03]}  Qg5 {[%clk 0:00:02]} 31. Qf2 {[%clk 0:00:04]}  Qd5 {[%clk 0:00:02]} 32. Bf3 {[%clk 0:00:04]}  Qd6 {[%clk 0:00:03]} 33. Qe2 {[%clk 0:00:04]}  Rf8 {[%clk 0:00:03]} 34. Rd1 {[%clk 0:00:04]}  h5 {[%clk 0:00:03]} 35. Rxd6 {[%clk 0:00:04]}  hxg4 {[%clk 0:00:04]} 36. Rd7 {[%clk 0:00:02]}  gxf3 {[%clk 0:00:03]} 37. gxf3 {[%clk 0:00:03]}  Bf4 {[%clk 0:00:02]} 38. Qe7 {[%clk 0:00:04]} 1-0


[Site "https://www.chess.com"]

[Event "Titled Tuesday Blitz March 28 Early 2023"]
[White "Lopez Del Alamo, Antonio"]
[Black "Budrewicz, Krzysztof"]
[WhiteFideId "2227339"]
[BlackFideId "1127950"]
[WhiteElo "2175"]
[BlackElo "2230"]
[Result "1-0"]
[Round "03"]
[TimeControl "180+2"]
[Date "2023.03.28"]
[WhiteClock "0:00:05"]
[BlackClock "0:00:10"]

1. e4 {[%clk 0:02:59]}  g6 {[%clk 0:02:57]} 2. d4 {[%clk 0:02:56]}  Bg7 {[%clk 0:02:58]} 3. Nc3 {[%clk 0:02:55]}  d6 {[%clk 0:02:58]} 4. h4 {[%clk 0:02:52]}  h6 {[%clk 0:02:56]} 5. Be3 {[%clk 0:02:51]}  a6 {[%clk 0:02:52]} 6. Qd2 {[%clk 0:02:47]}  b5 {[%clk 0:02:52]} 7. a3 {[%clk 0:02:47]}  Bb7 {[%clk 0:02:51]} 8. O-O-O {[%clk 0:02:46]}  Nd7 {[%clk 0:02:51]} 9. h5 {[%clk 0:02:38]}  g5 {[%clk 0:02:51]} 10. f4 {[%clk 0:02:38]}  gxf4 {[%clk 0:02:46]} 11. Bxf4 {[%clk 0:02:39]}  c5 {[%clk 0:02:44]} 12. Nf3 {[%clk 0:02:16]}  cxd4 {[%clk 0:02:37]} 13. Nxd4 {[%clk 0:02:14]}  Bxd4 {[%clk 0:02:36]} 14. Qxd4 {[%clk 0:02:11]}  e5 {[%clk 0:02:36]} 15. Qxd6 {[%clk 0:01:57]}  exf4 {[%clk 0:02:36]} 16. Bxb5 {[%clk 0:01:43]}  axb5 {[%clk 0:02:27]} 17. Nxb5 {[%clk 0:01:43]}  Rc8 {[%clk 0:02:18]} 18. Qb4 {[%clk 0:01:27]}  Rc6 {[%clk 0:01:56]} 19. Nd6+ {[%clk 0:01:11]}  Rxd6 {[%clk 0:01:55]} 20. Rxd6 {[%clk 0:01:11]}  Bc8 {[%clk 0:01:47]} 21. e5 {[%clk 0:01:07]}  Ne7 {[%clk 0:01:40]} 22. e6 {[%clk 0:01:06]}  fxe6 {[%clk 0:01:41]} 23. Rxe6 {[%clk 0:01:05]}  Nf8 {[%clk 0:01:39]} 24. Re5 {[%clk 0:00:51]}  Kf7 {[%clk 0:01:11]} 25. Rhe1 {[%clk 0:00:51]}  Ne6 {[%clk 0:00:55]} 26. Qe4 {[%clk 0:00:24]}  Qd6 {[%clk 0:00:51]} 27. g3 {[%clk 0:00:24]}  fxg3 {[%clk 0:00:45]} 28. Rf1+ {[%clk 0:00:19]}  Ke8 {[%clk 0:00:45]} 29. Qa4+ {[%clk 0:00:17]}  Bd7 {[%clk 0:00:32]} 30. Qe4 {[%clk 0:00:17]}  Rg8 {[%clk 0:00:30]} 31. Re1 {[%clk 0:00:14]}  g2 {[%clk 0:00:30]} 32. Rg1 {[%clk 0:00:14]}  Qd4 {[%clk 0:00:17]} 33. Qe1 {[%clk 0:00:10]}  Qf4+ {[%clk 0:00:16]} 34. Kb1 {[%clk 0:00:10]}  Kf7 {[%clk 0:00:17]} 35. Re2 {[%clk 0:00:10]}  Nf5 {[%clk 0:00:16]} 36. Rf2 {[%clk 0:00:10]}  Qg4 {[%clk 0:00:16]} 37. Qa5 {[%clk 0:00:07]}  Nf4 {[%clk 0:00:15]} 38. Qc7 {[%clk 0:00:06]}  Ke7 {[%clk 0:00:14]} 39. Qxf4 {[%clk 0:00:06]}  Qxf4 {[%clk 0:00:15]} 40. Rxf4 {[%clk 0:00:07]}  Ne3 {[%clk 0:00:15]} 41. Re4+ {[%clk 0:00:06]}  Kd6 {[%clk 0:00:14]} 42. Rxe3 {[%clk 0:00:07]}  Bc6 {[%clk 0:00:14]} 43. Re2 {[%clk 0:00:07]}  Rg5 {[%clk 0:00:14]} 44. b4 {[%clk 0:00:06]}  Bd5 {[%clk 0:00:13]} 45. Kb2 {[%clk 0:00:06]}  Rg3 {[%clk 0:00:14]} 46. Rd2 {[%clk 0:00:06]}  Ke5 {[%clk 0:00:14]} 47. a4 {[%clk 0:00:05]}  Be4 {[%clk 0:00:13]} 48. a5 {[%clk 0:00:05]}  Kf4 {[%clk 0:00:14]} 49. a6 {[%clk 0:00:06]}  Ke3 {[%clk 0:00:15]} 50. Rdd1 {[%clk 0:00:05]}  Rg7 {[%clk 0:00:13]} 51. b5 {[%clk 0:00:05]}  Rg5 {[%clk 0:00:13]} 52. c4 {[%clk 0:00:04]}  Bd3 {[%clk 0:00:13]} 53. Kc3 {[%clk 0:00:04]}  Be2 {[%clk 0:00:13]} 54. Rde1 {[%clk 0:00:04]}  Kf2 {[%clk 0:00:13]} 55. Rxg2+ {[%clk 0:00:04]}  Rxg2 {[%clk 0:00:13]} 56. Rxe2+ {[%clk 0:00:04]}  Kxe2 {[%clk 0:00:13]} 57. a7 {[%clk 0:00:05]}  Rg8 {[%clk 0:00:11]} 58. b6 {[%clk 0:00:06]}  Rg2 {[%clk 0:00:11]} 59. b7 {[%clk 0:00:05]}  Rg3+ {[%clk 0:00:10]} 60. Kb4 {[%clk 0:00:05]} 1-0


[Site "https://www.chess.com"]

[Event "Titled Tuesday Blitz March 28 Early 2023"]
[White "Sawyer, Bradley"]
[Black "Tokhirjonova, Gulrukhbegim"]
[WhiteFideId "2023784"]
[BlackFideId "14203626"]
[WhiteElo "2344"]
[BlackElo "2268"]
[Result "0-1"]
[Round "03"]
[TimeControl "180+2"]
[Date "2023.03.28"]
[WhiteClock "0:00:02"]
[BlackClock "0:00:19"]

1. c4 {[%clk 0:03:00]}  Nf6 {[%clk 0:02:59]} 2. g3 {[%clk 0:03:01]}  d5 {[%clk 0:02:59]} 3. cxd5 {[%clk 0:03:00]}  Nxd5 {[%clk 0:03:00]} 4. Bg2 {[%clk 0:03:00]}  c5 {[%clk 0:03:00]} 5. Nc3 {[%clk 0:02:59]}  Nxc3 {[%clk 0:02:59]} 6. bxc3 {[%clk 0:02:59]}  g6 {[%clk 0:02:59]} 7. Nf3 {[%clk 0:02:52]}  Bg7 {[%clk 0:02:58]} 8. O-O {[%clk 0:02:53]}  Nc6 {[%clk 0:02:57]} 9. d3 {[%clk 0:02:47]}  O-O {[%clk 0:02:56]} 10. Qc2 {[%clk 0:02:35]}  h6 {[%clk 0:02:48]} 11. Be3 {[%clk 0:02:35]}  Qd6 {[%clk 0:02:45]} 12. Rfd1 {[%clk 0:02:32]}  e5 {[%clk 0:02:44]} 13. Nd2 {[%clk 0:02:28]}  b6 {[%clk 0:02:32]} 14. a4 {[%clk 0:02:18]}  Bb7 {[%clk 0:02:27]} 15. Nc4 {[%clk 0:02:18]}  Qe6 {[%clk 0:02:23]} 16. a5 {[%clk 0:02:18]}  Nxa5 {[%clk 0:01:54]} 17. Nxa5 {[%clk 0:02:10]}  Bxg2 {[%clk 0:01:54]} 18. Kxg2 {[%clk 0:02:11]}  bxa5 {[%clk 0:01:54]} 19. Rxa5 {[%clk 0:02:12]}  c4 {[%clk 0:01:53]} 20. d4 {[%clk 0:01:47]}  exd4 {[%clk 0:01:46]} 21. cxd4 {[%clk 0:01:48]}  Rfc8 {[%clk 0:01:30]} 22. d5 {[%clk 0:01:46]}  Qd7 {[%clk 0:01:25]} 23. d6 {[%clk 0:01:36]}  c3 {[%clk 0:01:24]} 24. Bd4 {[%clk 0:01:17]}  Qxd6 {[%clk 0:01:15]} 25. Bxg7 {[%clk 0:00:48]}  Qc6+ {[%clk 0:01:14]} 26. f3 {[%clk 0:00:45]}  Kxg7 {[%clk 0:01:14]} 27. Rd3 {[%clk 0:00:37]}  Rab8 {[%clk 0:01:06]} 28. Ra3 {[%clk 0:00:35]}  Rb2 {[%clk 0:01:03]} 29. Qxc3+ {[%clk 0:00:35]}  Qxc3 {[%clk 0:01:03]} 30. Rdxc3 {[%clk 0:00:36]}  Rxc3 {[%clk 0:01:01]} 31. Rxc3 {[%clk 0:00:36]}  Rxe2+ {[%clk 0:01:02]} 32. Kh3 {[%clk 0:00:36]}  a5 {[%clk 0:00:47]} 33. Ra3 {[%clk 0:00:36]}  Re5 {[%clk 0:00:47]} 34. f4 {[%clk 0:00:35]}  Rb5 {[%clk 0:00:46]} 35. Kg4 {[%clk 0:00:35]}  Kf6 {[%clk 0:00:44]} 36. Kf3 {[%clk 0:00:32]}  Ke6 {[%clk 0:00:42]} 37. Ke4 {[%clk 0:00:29]}  Kd6 {[%clk 0:00:40]} 38. Kd4 {[%clk 0:00:23]}  Kc6 {[%clk 0:00:40]} 39. g4 {[%clk 0:00:15]}  h5 {[%clk 0:00:31]} 40. h3 {[%clk 0:00:12]}  hxg4 {[%clk 0:00:31]} 41. hxg4 {[%clk 0:00:13]}  f6 {[%clk 0:00:22]} 42. Rc3+ {[%clk 0:00:11]}  Kd6 {[%clk 0:00:20]} 43. Ra3 {[%clk 0:00:11]}  Rb4+ {[%clk 0:00:20]} 44. Ke3 {[%clk 0:00:11]}  a4 {[%clk 0:00:20]} 45. Rd3+ {[%clk 0:00:09]}  Kc5 {[%clk 0:00:19]} 46. Rd8 {[%clk 0:00:09]}  a3 {[%clk 0:00:18]} 47. Ra8 {[%clk 0:00:04]}  Rb3+ {[%clk 0:00:19]} 48. Kd2 {[%clk 0:00:02]}  Kb4 {[%clk 0:00:19]} 49. Kc2 {[%clk 0:00:02]}  Rb2+ {[%clk 0:00:19]} 0-1


[Site "https://www.chess.com"]